[Event "Titled Tuesday Blitz August 1 Late 2023"]
[White "Karwowski, Kacper"]
[Black "Fernandez Siles, Luis"]
[WhiteFideId "1126032"]
[BlackFideId "2209420"]
[WhiteElo "2550"]
[BlackElo "2291"]
[Result "1-0"]
[Round "1"]
[TimeControl "180+1"]
[Date "2023.08.01"]
[WhiteClock "0:01:12"]
[BlackClock "0:00:00"]
[Board "142"]

1. d4 {[%clk 0:02:58]}  Nf6 {[%clk 0:02:59]} 2. Nf3 {[%clk 0:02:57]}  g6 {[%clk 0:02:59]} 3. g3 {[%clk 0:02:54]}  Bg7 {[%clk 0:03:00]} 4. Bg2 {[%clk 0:02:55]}  O-O {[%clk 0:03:00]} 5. O-O {[%clk 0:02:55]}  d6 {[%clk 0:03:00]} 6. b3 {[%clk 0:02:55]}  e5 {[%clk 0:02:51]} 7. Bb2 {[%clk 0:02:53]}  Nc6 {[%clk 0:02:46]} 8. dxe5 {[%clk 0:02:52]}  Ng4 {[%clk 0:02:46]} 9. c4 {[%clk 0:02:48]}  Ncxe5 {[%clk 0:02:42]} 10. Nxe5 {[%clk 0:02:48]}  Nxe5 {[%clk 0:02:41]} 11. Nc3 {[%clk 0:02:47]}  a5 {[%clk 0:02:30]} 12. Qd2 {[%clk 0:02:45]}  Nc6 {[%clk 0:02:17]} 13. Rad1 {[%clk 0:02:41]}  Be6 {[%clk 0:02:10]} 14. Nd5 {[%clk 0:02:23]}  Bxd5 {[%clk 0:01:54]} 15. cxd5 {[%clk 0:02:13]}  Ne5 {[%clk 0:01:47]} 16. Rc1 {[%clk 0:02:12]}  a4 {[%clk 0:01:43]} 17. b4 {[%clk 0:02:12]}  a3 {[%clk 0:01:42]} 18. Ba1 {[%clk 0:02:00]}  b5 {[%clk 0:01:33]} 19. Qc3 {[%clk 0:02:00]}  f6 {[%clk 0:01:02]} 20. Qxc7 {[%clk 0:01:57]}  Nc4 {[%clk 0:00:57]} 21. Qxd8 {[%clk 0:01:56]}  Rfxd8 {[%clk 0:00:51]} 22. e3 {[%clk 0:01:53]}  Ra4 {[%clk 0:00:47]} 23. Bd4 {[%clk 0:01:27]}  Rxb4 {[%clk 0:00:41]} 24. Rb1 {[%clk 0:01:27]}  Rxb1 {[%clk 0:00:21]} 25. Rxb1 {[%clk 0:01:28]}  Rb8 {[%clk 0:00:15]} 26. Bf1 {[%clk 0:01:28]}  Nb2 {[%clk 0:00:10]} 27. Bxb2 {[%clk 0:01:27]}  axb2 {[%clk 0:00:10]} 28. Rxb2 {[%clk 0:01:28]}  b4 {[%clk 0:00:10]} 29. a3 {[%clk 0:01:16]}  b3 {[%clk 0:00:05]} 30. Bc4 {[%clk 0:01:16]}  f5 {[%clk 0:00:04]} 31. Rxb3 {[%clk 0:01:16]}  Rxb3 {[%clk 0:00:04]} 32. Bxb3 {[%clk 0:01:17]}  Kf8 {[%clk 0:00:01]} 33. Kf1 {[%clk 0:01:16]}  Ke7 {[%clk 0:00:01]} 34. Ke2 {[%clk 0:01:17]}  Kd8 {[%clk 0:00:02]} 35. Kd3 {[%clk 0:01:17]}  Kc7 {[%clk 0:00:02]} 36. Kc4 {[%clk 0:01:12]}  Kb6 {[%clk 0:00:00]} 37. Ba4 {[%clk 0:01:12]} 1-0


[Site "https://www.chess.com"]

[Event "Titled Tuesday Blitz August 1 Late 2023"]
[White "Arias Igual, Alejandro"]
[Black "Ambartsumova, Karina"]
[WhiteFideId "2254905"]
[BlackFideId "4166299"]
[WhiteElo "2287"]
[BlackElo "2549"]
[Result "0-1"]
[Round "1"]
[TimeControl "180+1"]
[Date "2023.08.01"]
[WhiteClock "0:00:13"]
[BlackClock "0:01:08"]
[Board "143"]

1. Nf3 {[%clk 0:02:55]}  Nf6 {[%clk 0:02:59]} 2. g3 {[%clk 0:02:56]}  g6 {[%clk 0:02:59]} 3. Bg2 {[%clk 0:02:56]}  Bg7 {[%clk 0:03:00]} 4. O-O {[%clk 0:02:57]}  O-O {[%clk 0:03:00]} 5. d3 {[%clk 0:02:57]}  d5 {[%clk 0:03:00]} 6. Nbd2 {[%clk 0:02:54]}  c5 {[%clk 0:03:01]} 7. e4 {[%clk 0:02:49]}  Nc6 {[%clk 0:03:01]} 8. c3 {[%clk 0:02:48]}  e5 {[%clk 0:03:01]} 9. Re1 {[%clk 0:02:44]}  Re8 {[%clk 0:03:01]} 10. exd5 {[%clk 0:02:39]}  Nxd5 {[%clk 0:03:02]} 11. a4 {[%clk 0:02:36]}  Be6 {[%clk 0:02:56]} 12. Nc4 {[%clk 0:02:35]}  Qc7 {[%clk 0:02:54]} 13. Ne3 {[%clk 0:02:29]}  Rad8 {[%clk 0:02:47]} 14. Qc2 {[%clk 0:02:26]}  Nxe3 {[%clk 0:02:44]} 15. Bxe3 {[%clk 0:02:25]}  Bf5 {[%clk 0:02:44]} 16. Bxc5 {[%clk 0:02:02]}  Bxd3 {[%clk 0:02:43]} 17. Qc1 {[%clk 0:02:02]}  e4 {[%clk 0:02:35]} 18. Nd2 {[%clk 0:01:54]}  f5 {[%clk 0:02:31]} 19. Nf1 {[%clk 0:01:27]}  Ne5 {[%clk 0:02:29]} 20. Bd4 {[%clk 0:01:23]}  Bxf1 {[%clk 0:02:18]} 21. Bxe5 {[%clk 0:01:17]}  Bxe5 {[%clk 0:02:18]} 22. Bxf1 {[%clk 0:01:12]}  Rd6 {[%clk 0:01:58]} 23. Qe3 {[%clk 0:01:10]}  a6 {[%clk 0:01:53]} 24. Rad1 {[%clk 0:01:08]}  Red8 {[%clk 0:01:54]} 25. Rxd6 {[%clk 0:01:07]}  Qxd6 {[%clk 0:01:55]} 26. Bc4+ {[%clk 0:01:06]}  Kg7 {[%clk 0:01:54]} 27. Bb3 {[%clk 0:01:05]}  Bf6 {[%clk 0:01:29]} 28. Rd1 {[%clk 0:01:02]}  Qe5 {[%clk 0:01:30]} 29. Rxd8 {[%clk 0:01:00]}  Bxd8 {[%clk 0:01:30]} 30. Qd4 {[%clk 0:00:51]}  Qxd4 {[%clk 0:01:30]} 31. cxd4 {[%clk 0:00:51]}  Bf6 {[%clk 0:01:31]} 32. Bd5 {[%clk 0:00:51]}  b6 {[%clk 0:01:31]} 33. Bb7 {[%clk 0:00:51]}  a5 {[%clk 0:01:30]} 34. b3 {[%clk 0:00:49]}  Bxd4 {[%clk 0:01:30]} 35. Kg2 {[%clk 0:00:49]}  Kf6 {[%clk 0:01:30]} 36. h4 {[%clk 0:00:48]}  h6 {[%clk 0:01:30]} 37. Kf1 {[%clk 0:00:46]}  g5 {[%clk 0:01:30]} 38. hxg5+ {[%clk 0:00:45]}  hxg5 {[%clk 0:01:31]} 39. Ke2 {[%clk 0:00:46]}  Ke5 {[%clk 0:01:31]} 40. Bc8 {[%clk 0:00:45]}  Bc5 {[%clk 0:01:30]} 41. Bd7 {[%clk 0:00:45]}  f4 {[%clk 0:01:29]} 42. gxf4+ {[%clk 0:00:45]}  gxf4 {[%clk 0:01:30]} 43. f3 {[%clk 0:00:43]}  exf3+ {[%clk 0:01:22]} 44. Kxf3 {[%clk 0:00:44]}  Be3 {[%clk 0:01:22]} 45. Bb5 {[%clk 0:00:44]}  Kd4 {[%clk 0:01:23]} 46. Bc4 {[%clk 0:00:45]}  Kc3 {[%clk 0:01:23]} 47. Bd5 {[%clk 0:00:45]}  Kd2 {[%clk 0:01:23]} 48. Bc4 {[%clk 0:00:46]}  Kc3 {[%clk 0:01:24]} 49. Be6 {[%clk 0:00:47]}  Kb4 {[%clk 0:01:23]} 50. Bc4 {[%clk 0:00:47]}  b5 {[%clk 0:01:22]} 51. Be6 {[%clk 0:00:48]}  bxa4 {[%clk 0:01:22]} 52. bxa4 {[%clk 0:00:49]}  Kxa4 {[%clk 0:01:23]} 53. Bd5 {[%clk 0:00:31]}  Kb4 {[%clk 0:01:22]} 54. Ke2 {[%clk 0:00:31]}  Kc3 {[%clk 0:01:14]} 55. Bc6 {[%clk 0:00:30]}  Bb6 {[%clk 0:01:15]} 56. Bd7 {[%clk 0:00:26]}  Kb3 {[%clk 0:01:13]} 57. Kf3 {[%clk 0:00:26]}  Bc7 {[%clk 0:01:12]} 58. Be6+ {[%clk 0:00:22]}  Kb4 {[%clk 0:01:09]} 59. Bd5 {[%clk 0:00:21]}  a4 {[%clk 0:01:07]} 60. Ke2 {[%clk 0:00:13]}  Kc3 {[%clk 0:01:08]} 0-1


[Site "https://www.chess.com"]

[Event "Titled Tuesday Blitz August 1 Late 2023"]
[White "Grinev, Valeriy"]
[Black "Ward, Ieuan C"]
[WhiteFideId "14117517"]
[BlackFideId "406627"]
[WhiteElo "2548"]
[BlackElo "2287"]
[Result "0-1"]
[Round "1"]
[TimeControl "180+1"]
[Date "2023.08.01"]
[WhiteClock "0:00:47"]
[BlackClock "0:00:18"]
[Board "144"]

1. d4 {[%clk 0:03:00]}  Nf6 {[%clk 0:02:59]} 2. c4 {[%clk 0:02:58]}  e6 {[%clk 0:02:59]} 3. Nc3 {[%clk 0:02:57]}  Bb4 {[%clk 0:02:59]} 4. e3 {[%clk 0:02:57]}  O-O {[%clk 0:02:57]} 5. Bd2 {[%clk 0:02:56]}  b6 {[%clk 0:02:56]} 6. Bd3 {[%clk 0:02:55]}  Bb7 {[%clk 0:02:56]} 7. Nf3 {[%clk 0:02:54]}  d5 {[%clk 0:02:53]} 8. cxd5 {[%clk 0:02:51]}  exd5 {[%clk 0:02:51]} 9. O-O {[%clk 0:02:49]}  Nbd7 {[%clk 0:02:42]} 10. Rc1 {[%clk 0:02:44]}  c5 {[%clk 0:02:36]} 11. a3 {[%clk 0:02:42]}  Bxc3 {[%clk 0:02:35]} 12. Bxc3 {[%clk 0:02:43]}  c4 {[%clk 0:02:33]} 13. Bb1 {[%clk 0:02:43]}  Re8 {[%clk 0:02:30]} 14. Ne5 {[%clk 0:02:38]}  Nxe5 {[%clk 0:02:27]} 15. dxe5 {[%clk 0:02:38]}  Ne4 {[%clk 0:02:27]} 16. Bxe4 {[%clk 0:02:37]}  dxe4 {[%clk 0:02:27]} 17. Qd6 {[%clk 0:02:38]}  Re6 {[%clk 0:02:13]} 18. Qxd8+ {[%clk 0:02:36]}  Rxd8 {[%clk 0:02:14]} 19. Rfd1 {[%clk 0:02:34]}  Ree8 {[%clk 0:02:11]} 20. Rd6 {[%clk 0:02:29]}  Rxd6 {[%clk 0:01:53]} 21. exd6 {[%clk 0:02:28]}  Rd8 {[%clk 0:01:50]} 22. Rd1 {[%clk 0:02:27]}  f6 {[%clk 0:01:39]} 23. Rd4 {[%clk 0:02:22]}  b5 {[%clk 0:01:39]} 24. a4 {[%clk 0:02:19]}  a6 {[%clk 0:01:39]} 25. axb5 {[%clk 0:02:19]}  axb5 {[%clk 0:01:39]} 26. g4 {[%clk 0:02:18]}  Kf7 {[%clk 0:01:38]} 27. Ba5 {[%clk 0:02:17]}  Rd7 {[%clk 0:01:31]} 28. Bc7 {[%clk 0:02:16]}  Ke6 {[%clk 0:01:27]} 29. Kg2 {[%clk 0:02:16]}  g6 {[%clk 0:01:25]} 30. Kg3 {[%clk 0:02:15]}  Bc6 {[%clk 0:01:17]} 31. Kf4 {[%clk 0:02:14]}  Rf7 {[%clk 0:01:13]} 32. h4 {[%clk 0:02:07]}  f5 {[%clk 0:01:11]} 33. g5 {[%clk 0:02:06]}  Rf8 {[%clk 0:01:04]} 34. Rd1 {[%clk 0:02:05]}  Ra8 {[%clk 0:01:03]} 35. h5 {[%clk 0:02:03]}  Ra2 {[%clk 0:01:01]} 36. Rh1 {[%clk 0:02:03]}  Be8 {[%clk 0:00:58]} 37. hxg6 {[%clk 0:02:02]}  Bxg6 {[%clk 0:00:58]} 38. Rb1 {[%clk 0:02:00]}  Be8 {[%clk 0:00:47]} 39. f3 {[%clk 0:01:54]}  exf3 {[%clk 0:00:46]} 40. Kxf3 {[%clk 0:01:55]}  Bh5+ {[%clk 0:00:45]} 41. Kf4 {[%clk 0:01:54]}  Be8 {[%clk 0:00:44]} 42. e4 {[%clk 0:01:54]}  fxe4 {[%clk 0:00:44]} 43. Re1 {[%clk 0:01:51]}  Bg6 {[%clk 0:00:44]} 44. Rd1 {[%clk 0:01:51]}  Kd7 {[%clk 0:00:44]} 45. Rd5 {[%clk 0:01:48]}  Rxb2 {[%clk 0:00:43]} 46. Re5 {[%clk 0:01:49]}  Rd2 {[%clk 0:00:40]} 47. Rxb5 {[%clk 0:01:48]}  c3 {[%clk 0:00:37]} 48. Rc5 {[%clk 0:01:48]}  c2 {[%clk 0:00:36]} 49. Ke3 {[%clk 0:01:43]}  Rd3+ {[%clk 0:00:30]} 50. Kf4 {[%clk 0:01:38]}  Rf3+ {[%clk 0:00:26]} 51. Kg4 {[%clk 0:01:04]}  Bf5+ {[%clk 0:00:21]} 52. Rxf5 {[%clk 0:01:03]}  Rxf5 {[%clk 0:00:20]} 53. Kxf5 {[%clk 0:01:03]}  c1=Q {[%clk 0:00:21]} 54. Kxe4 {[%clk 0:01:04]}  Qxg5 {[%clk 0:00:21]} 55. Kf3 {[%clk 0:01:04]}  h5 {[%clk 0:00:21]} 56. Ke4 {[%clk 0:01:05]}  h4 {[%clk 0:00:21]} 57. Kf3 {[%clk 0:01:06]}  h3 {[%clk 0:00:21]} 58. Bb6 {[%clk 0:00:47]}  h2 {[%clk 0:00:18]} 0-1


[Site "https://www.chess.com"]

[Event "Titled Tuesday Blitz August 1 Late 2023"]
[White "Shapiro, Viktor"]
[Black "Garmendiarov"]
[WhiteFideId "4175700"]
[WhiteElo "2545"]
[BlackElo "2273"]
[Result "1-0"]
[Round "1"]
[TimeControl "180+1"]
[Date "2023.08.01"]
[WhiteClock "0:01:06"]
[BlackClock "0:00:05"]
[Board "146"]

1. c4 {[%clk 0:03:00]}  g6 {[%clk 0:02:58]} 2. Nc3 {[%clk 0:03:01]}  c5 {[%clk 0:02:56]} 3. Nf3 {[%clk 0:03:01]}  Bg7 {[%clk 0:02:56]} 4. g3 {[%clk 0:03:02]}  Nc6 {[%clk 0:02:54]} 5. Bg2 {[%clk 0:03:02]}  e6 {[%clk 0:02:54]} 6. d3 {[%clk 0:03:02]}  Nge7 {[%clk 0:02:54]} 7. a3 {[%clk 0:03:02]}  O-O {[%clk 0:02:54]} 8. Bg5 {[%clk 0:03:02]}  h6 {[%clk 0:02:52]} 9. Bd2 {[%clk 0:03:02]}  d5 {[%clk 0:02:51]} 10. O-O {[%clk 0:03:01]}  Rb8 {[%clk 0:02:44]} 11. Rb1 {[%clk 0:03:00]}  b6 {[%clk 0:02:31]} 12. b4 {[%clk 0:03:00]}  cxb4 {[%clk 0:02:31]} 13. axb4 {[%clk 0:03:00]}  dxc4 {[%clk 0:02:32]} 14. dxc4 {[%clk 0:03:00]}  Bb7 {[%clk 0:02:31]} 15. c5 {[%clk 0:02:54]}  bxc5 {[%clk 0:02:01]} 16. bxc5 {[%clk 0:02:54]}  Nd5 {[%clk 0:02:00]} 17. Nb5 {[%clk 0:02:41]}  Ba6 {[%clk 0:01:50]} 18. Qa4 {[%clk 0:02:34]}  Bxb5 {[%clk 0:01:17]} 19. Rxb5 {[%clk 0:02:33]}  Rxb5 {[%clk 0:01:15]} 20. Qxb5 {[%clk 0:02:34]}  Nd4 {[%clk 0:01:14]} 21. Nxd4 {[%clk 0:02:34]}  Bxd4 {[%clk 0:01:15]} 22. Bxh6 {[%clk 0:02:31]}  Bg7 {[%clk 0:01:07]} 23. Bxg7 {[%clk 0:02:29]}  Kxg7 {[%clk 0:01:08]} 24. Qb2+ {[%clk 0:02:19]}  Qf6 {[%clk 0:01:02]} 25. Qxf6+ {[%clk 0:02:18]}  Kxf6 {[%clk 0:01:01]} 26. Ra1 {[%clk 0:02:11]}  Rc8 {[%clk 0:00:55]} 27. e4 {[%clk 0:01:56]}  Nc3 {[%clk 0:00:47]} 28. Ra5 {[%clk 0:01:49]}  Rc7 {[%clk 0:00:29]} 29. f4 {[%clk 0:01:49]}  Ne2+ {[%clk 0:00:27]} 30. Kf2 {[%clk 0:01:48]}  Nd4 {[%clk 0:00:27]} 31. Ke3 {[%clk 0:01:36]}  Nb3 {[%clk 0:00:26]} 32. e5+ {[%clk 0:01:36]}  Ke7 {[%clk 0:00:23]} 33. Ra3 {[%clk 0:01:26]}  Nxc5 {[%clk 0:00:22]} 34. Kd4 {[%clk 0:01:24]}  Nd7 {[%clk 0:00:20]} 35. Be4 {[%clk 0:01:20]}  Nb6 {[%clk 0:00:21]} 36. h3 {[%clk 0:01:16]}  Rc4+ {[%clk 0:00:20]} 37. Kd3 {[%clk 0:01:16]}  Rc7 {[%clk 0:00:20]} 38. g4 {[%clk 0:01:16]}  Rd7+ {[%clk 0:00:19]} 39. Ke2 {[%clk 0:01:16]}  Kd8 {[%clk 0:00:17]} 40. Kf3 {[%clk 0:01:14]}  Kc8 {[%clk 0:00:17]} 41. h4 {[%clk 0:01:13]}  Kb8 {[%clk 0:00:17]} 42. h5 {[%clk 0:01:14]}  gxh5 {[%clk 0:00:17]} 43. gxh5 {[%clk 0:01:14]}  Rd8 {[%clk 0:00:16]} 44. h6 {[%clk 0:01:14]}  Rh8 {[%clk 0:00:16]} 45. h7 {[%clk 0:01:14]}  Nd5 {[%clk 0:00:14]} 46. Rd3 {[%clk 0:01:13]}  Kc7 {[%clk 0:00:13]} 47. f5 {[%clk 0:01:12]}  Kc6 {[%clk 0:00:13]} 48. f6 {[%clk 0:01:12]}  a5 {[%clk 0:00:13]} 49. Kg4 {[%clk 0:01:11]}  a4 {[%clk 0:00:12]} 50. Kg5 {[%clk 0:01:11]}  Kc5 {[%clk 0:00:13]} 51. Kh6 {[%clk 0:01:11]}  Nf4 {[%clk 0:00:10]} 52. Rf3 {[%clk 0:01:11]}  Nd5 {[%clk 0:00:09]} 53. Kg7 {[%clk 0:01:10]}  Rxh7+ {[%clk 0:00:08]} 54. Bxh7 {[%clk 0:01:10]}  Kb4 {[%clk 0:00:09]} 55. Bg8 {[%clk 0:01:10]}  a3 {[%clk 0:00:09]} 56. Rxa3 {[%clk 0:01:09]}  Kxa3 {[%clk 0:00:09]} 57. Bxf7 {[%clk 0:01:09]}  Nf4 {[%clk 0:00:10]} 58. Be8 {[%clk 0:01:08]}  Nd3 {[%clk 0:00:09]} 59. f7 {[%clk 0:01:08]}  Nxe5 {[%clk 0:00:10]} 60. f8=Q+ {[%clk 0:01:09]}  Kb3 {[%clk 0:00:10]} 61. Qd6 {[%clk 0:01:09]}  Nc4 {[%clk 0:00:10]} 62. Qxe6 {[%clk 0:01:09]}  Kc3 {[%clk 0:00:11]} 63. Bf7 {[%clk 0:01:09]}  Nd2 {[%clk 0:00:10]} 64. Qc6+ {[%clk 0:01:09]}  Kd3 {[%clk 0:00:10]} 65. Bg6+ {[%clk 0:01:09]}  Ke3 {[%clk 0:00:11]} 66. Qc5+ {[%clk 0:01:08]}  Ke2 {[%clk 0:00:10]} 67. Qd4 {[%clk 0:01:08]}  Nf3 {[%clk 0:00:11]} 68. Bh5 {[%clk 0:01:06]}  Ke1 {[%clk 0:00:09]} 69. Qe3+ {[%clk 0:01:05]}  Kf1 {[%clk 0:00:08]} 70. Qxf3+ {[%clk 0:01:06]}  Kg1 {[%clk 0:00:09]} 71. Qe2 {[%clk 0:01:06]}  Kh1 {[%clk 0:00:08]} 72. Bg4 {[%clk 0:01:06]}  Kg1 {[%clk 0:00:05]} 73. Bh3 {[%clk 0:01:06]} 1-0


[Site "https://www.chess.com"]

[Event "Titled Tuesday Blitz August 1 Late 2023"]
[White "Leebit02"]
[Black "Sala, Giulia"]
[BlackFideId "2840451"]
[WhiteElo "2545"]
[BlackElo "2272"]
[Result "1-0"]
[Round "1"]
[TimeControl "180+1"]
[Date "2023.08.01"]
[WhiteClock "0:00:46"]
[BlackClock "0:00:19"]
[Board "148"]

1. e4 {[%clk 0:02:58]}  g6 {[%clk 0:02:58]} 2. d4 {[%clk 0:02:58]}  Bg7 {[%clk 0:02:58]} 3. Nc3 {[%clk 0:02:58]}  d6 {[%clk 0:02:57]} 4. f4 {[%clk 0:02:57]}  Nf6 {[%clk 0:02:56]} 5. Nf3 {[%clk 0:02:56]}  O-O {[%clk 0:02:52]} 6. Bd3 {[%clk 0:02:50]}  Na6 {[%clk 0:02:51]} 7. O-O {[%clk 0:02:47]}  c5 {[%clk 0:02:49]} 8. d5 {[%clk 0:02:47]}  Nc7 {[%clk 0:02:47]} 9. a4 {[%clk 0:02:42]}  a6 {[%clk 0:02:45]} 10. a5 {[%clk 0:02:39]}  Rb8 {[%clk 0:02:45]} 11. Nd2 {[%clk 0:02:35]}  b5 {[%clk 0:02:42]} 12. axb6 {[%clk 0:02:34]}  Rxb6 {[%clk 0:02:42]} 13. Nc4 {[%clk 0:02:35]}  Rb4 {[%clk 0:02:40]} 14. Na5 {[%clk 0:02:32]}  Bd7 {[%clk 0:02:38]} 15. Qf3 {[%clk 0:02:23]}  e6 {[%clk 0:02:18]} 16. dxe6 {[%clk 0:02:10]}  Bxe6 {[%clk 0:02:19]} 17. Nc6 {[%clk 0:02:09]}  Qa8 {[%clk 0:02:15]} 18. Nxb4 {[%clk 0:02:07]}  cxb4 {[%clk 0:02:16]} 19. Ne2 {[%clk 0:02:06]}  d5 {[%clk 0:02:13]} 20. e5 {[%clk 0:02:04]}  Nd7 {[%clk 0:02:02]} 21. Be3 {[%clk 0:02:03]}  Rc8 {[%clk 0:01:56]} 22. Nd4 {[%clk 0:02:01]}  Qb7 {[%clk 0:01:55]} 23. Nb3 {[%clk 0:01:53]}  h5 {[%clk 0:01:11]} 24. Qf2 {[%clk 0:01:47]}  Nb5 {[%clk 0:01:03]} 25. Nc5 {[%clk 0:01:44]}  Nxc5 {[%clk 0:01:03]} 26. Bxc5 {[%clk 0:01:45]}  Qc6 {[%clk 0:00:50]} 27. Bxb4 {[%clk 0:01:42]}  d4 {[%clk 0:00:50]} 28. Rae1 {[%clk 0:01:23]}  Qd5 {[%clk 0:00:38]} 29. Be7 {[%clk 0:01:11]}  Bh6 {[%clk 0:00:30]} 30. Qh4 {[%clk 0:01:05]}  Na7 {[%clk 0:00:24]} 31. f5 {[%clk 0:01:03]}  Be3+ {[%clk 0:00:20]} 32. Rxe3 {[%clk 0:00:57]}  dxe3 {[%clk 0:00:20]} 33. fxe6 {[%clk 0:00:58]}  Qxe6 {[%clk 0:00:21]} 34. Bf6 {[%clk 0:00:55]}  Nc6 {[%clk 0:00:22]} 35. Qf4 {[%clk 0:00:54]}  Kf8 {[%clk 0:00:22]} 36. Qxe3 {[%clk 0:00:52]}  Ke8 {[%clk 0:00:19]} 37. Bxa6 {[%clk 0:00:50]}  Ra8 {[%clk 0:00:19]} 38. Bb5 {[%clk 0:00:50]}  Rb8 {[%clk 0:00:19]} 39. Qc5 {[%clk 0:00:49]}  Kd7 {[%clk 0:00:19]} 40. Rd1+ {[%clk 0:00:48]}  Kc7 {[%clk 0:00:20]} 41. Rd6 {[%clk 0:00:48]}  Qe8 {[%clk 0:00:18]} 42. Rxc6+ {[%clk 0:00:47]}  Kb7 {[%clk 0:00:19]} 43. Qb6+ {[%clk 0:00:46]}  Ka8 {[%clk 0:00:19]} 44. Qa6# {[%clk 0:00:46]} 1-0


[Site "https://www.chess.com"]

[Event "Titled Tuesday Blitz August 1 Late 2023"]
[White "Keleberda, Tymur"]
[Black "Doluhanova, Evgeniya"]
[WhiteFideId "14174294"]
[BlackFideId "14112035"]
[WhiteElo "2542"]
[BlackElo "2270"]
[Result "1-0"]
[Round "1"]
[TimeControl "180+1"]
[Date "2023.08.01"]
[WhiteClock "0:00:20"]
[BlackClock "0:00:02"]
[Board "150"]

1. e4 {[%clk 0:02:59]}  c5 {[%clk 0:02:56]} 2. Nf3 {[%clk 0:02:58]}  d6 {[%clk 0:02:56]} 3. Bb5+ {[%clk 0:02:58]}  Nd7 {[%clk 0:02:55]} 4. O-O {[%clk 0:02:53]}  g6 {[%clk 0:02:54]} 5. c3 {[%clk 0:02:52]}  Bg7 {[%clk 0:02:53]} 6. d4 {[%clk 0:02:53]}  a6 {[%clk 0:02:47]} 7. Bd3 {[%clk 0:02:50]}  cxd4 {[%clk 0:02:43]} 8. cxd4 {[%clk 0:02:51]}  Ngf6 {[%clk 0:02:43]} 9. Nc3 {[%clk 0:02:51]}  O-O {[%clk 0:02:42]} 10. Bg5 {[%clk 0:02:29]}  h6 {[%clk 0:02:38]} 11. Be3 {[%clk 0:02:29]}  e5 {[%clk 0:02:36]} 12. Qd2 {[%clk 0:02:26]}  Kh7 {[%clk 0:02:35]} 13. a4 {[%clk 0:02:25]}  b6 {[%clk 0:02:33]} 14. d5 {[%clk 0:02:25]}  Nc5 {[%clk 0:02:31]} 15. Bxc5 {[%clk 0:02:22]}  bxc5 {[%clk 0:02:30]} 16. a5 {[%clk 0:02:22]}  Nh5 {[%clk 0:02:29]} 17. Rfe1 {[%clk 0:02:15]}  Bg4 {[%clk 0:02:28]} 18. Qe3 {[%clk 0:02:11]}  Nf4 {[%clk 0:02:24]} 19. Bf1 {[%clk 0:02:11]}  f5 {[%clk 0:02:20]} 20. Nd2 {[%clk 0:02:11]}  Qg5 {[%clk 0:02:12]} 21. Nc4 {[%clk 0:01:49]}  Nh3+ {[%clk 0:01:46]} 22. Kh1 {[%clk 0:01:31]}  f4 {[%clk 0:01:24]} 23. Qd2 {[%clk 0:01:29]}  Qh4 {[%clk 0:01:05]} 24. f3 {[%clk 0:01:14]}  h5 {[%clk 0:00:36]} 25. fxg4 {[%clk 0:01:09]}  Nf2+ {[%clk 0:00:21]} 26. Kg1 {[%clk 0:01:09]}  Nxg4 {[%clk 0:00:21]} 27. h3 {[%clk 0:01:09]}  f3 {[%clk 0:00:20]} 28. Nd1 {[%clk 0:01:03]}  Bh6 {[%clk 0:00:19]} 29. Qc3 {[%clk 0:00:47]}  f2+ {[%clk 0:00:19]} 30. Nxf2 {[%clk 0:00:47]}  Qxf2+ {[%clk 0:00:19]} 31. Kh1 {[%clk 0:00:47]}  Bf4 {[%clk 0:00:14]} 32. hxg4 {[%clk 0:00:45]}  hxg4 {[%clk 0:00:14]} 33. g3 {[%clk 0:00:22]}  Bxg3 {[%clk 0:00:14]} 34. Re2 {[%clk 0:00:22]}  Qf6 {[%clk 0:00:13]} 35. Qxg3 {[%clk 0:00:22]}  Kg7 {[%clk 0:00:13]} 36. Bg2 {[%clk 0:00:20]}  Rh8+ {[%clk 0:00:13]} 37. Kg1 {[%clk 0:00:21]}  Qg5 {[%clk 0:00:12]} 38. Rf1 {[%clk 0:00:20]}  Raf8 {[%clk 0:00:11]} 39. Ref2 {[%clk 0:00:20]}  Rxf2 {[%clk 0:00:08]} 40. Qxf2 {[%clk 0:00:21]}  g3 {[%clk 0:00:07]} 41. Qf7+ {[%clk 0:00:21]}  Kh6 {[%clk 0:00:08]} 42. Qf6 {[%clk 0:00:20]}  Qh5 {[%clk 0:00:02]} 43. Qxh8+ {[%clk 0:00:20]} 1-0


[Site "https://www.chess.com"]

[Event "Titled Tuesday Blitz August 1 Late 2023"]
[White "Andreassen, Lars"]
[Black "ArtemDyachuk"]
[WhiteFideId "1504878"]
[WhiteElo "2264"]
[BlackElo "2535"]
[Result "1-0"]
[Round "1"]
[TimeControl "180+1"]
[Date "2023.08.01"]
[WhiteClock "0:00:04"]
[BlackClock "0:00:00"]
[Board "153"]

1. d4 {[%clk 0:02:58]}  Nf6 {[%clk 0:02:59]} 2. Nf3 {[%clk 0:02:58]}  e6 {[%clk 0:02:58]} 3. Bg5 {[%clk 0:02:58]}  Be7 {[%clk 0:02:52]} 4. e3 {[%clk 0:02:57]}  O-O {[%clk 0:02:51]} 5. c4 {[%clk 0:02:57]}  c5 {[%clk 0:02:45]} 6. Nc3 {[%clk 0:02:55]}  cxd4 {[%clk 0:02:40]} 7. Nxd4 {[%clk 0:02:54]}  d5 {[%clk 0:02:40]} 8. cxd5 {[%clk 0:02:52]}  exd5 {[%clk 0:02:38]} 9. Be2 {[%clk 0:02:51]}  h6 {[%clk 0:02:37]} 10. Bh4 {[%clk 0:02:51]}  Nc6 {[%clk 0:02:37]} 11. O-O {[%clk 0:02:50]}  Re8 {[%clk 0:02:35]} 12. Bf3 {[%clk 0:02:50]}  Ne5 {[%clk 0:02:20]} 13. Bxf6 {[%clk 0:02:43]}  Nxf3+ {[%clk 0:02:17]} 14. Qxf3 {[%clk 0:02:42]}  Bxf6 {[%clk 0:02:18]} 15. Qxd5 {[%clk 0:02:34]}  Qb6 {[%clk 0:02:15]} 16. Qb5 {[%clk 0:02:19]}  Qxb5 {[%clk 0:01:56]} 17. Ndxb5 {[%clk 0:02:18]}  Be5 {[%clk 0:01:57]} 18. Rfd1 {[%clk 0:02:12]}  Bg4 {[%clk 0:01:53]} 19. f3 {[%clk 0:02:12]}  Bh5 {[%clk 0:01:53]} 20. Rd2 {[%clk 0:01:54]}  Bxc3 {[%clk 0:01:45]} 21. Nxc3 {[%clk 0:01:49]}  Rxe3 {[%clk 0:01:45]} 22. Rd7 {[%clk 0:01:49]}  Bg6 {[%clk 0:01:31]} 23. Rxb7 {[%clk 0:01:42]}  Rd8 {[%clk 0:01:31]} 24. Kf2 {[%clk 0:01:39]}  Red3 {[%clk 0:01:26]} 25. Re1 {[%clk 0:01:34]}  a6 {[%clk 0:01:05]} 26. Ra7 {[%clk 0:01:30]}  Rd2+ {[%clk 0:00:49]} 27. Re2 {[%clk 0:01:30]}  Rxe2+ {[%clk 0:00:34]} 28. Kxe2 {[%clk 0:01:18]}  f6 {[%clk 0:00:35]} 29. Ne4 {[%clk 0:01:09]}  Re8 {[%clk 0:00:27]} 30. Kf2 {[%clk 0:01:07]}  Re6 {[%clk 0:00:24]} 31. Nc5 {[%clk 0:01:04]}  Rc6 {[%clk 0:00:23]} 32. b4 {[%clk 0:01:01]}  Bf7 {[%clk 0:00:14]} 33. a3 {[%clk 0:00:59]}  Bc4 {[%clk 0:00:14]} 34. Ke3 {[%clk 0:00:54]}  Rd6 {[%clk 0:00:14]} 35. h4 {[%clk 0:00:49]}  Kh7 {[%clk 0:00:13]} 36. h5 {[%clk 0:00:47]}  Kg8 {[%clk 0:00:10]} 37. g4 {[%clk 0:00:46]}  Kh7 {[%clk 0:00:04]} 38. a4 {[%clk 0:00:43]}  Rb6 {[%clk 0:00:03]} 39. Kd4 {[%clk 0:00:39]}  Bf1 {[%clk 0:00:01]} 40. Kc3 {[%clk 0:00:36]}  Bg2 {[%clk 0:00:02]} 41. Rxa6 {[%clk 0:00:31]}  Rb8 {[%clk 0:00:01]} 42. b5 {[%clk 0:00:20]}  Bxf3 {[%clk 0:00:02]} 43. Kb4 {[%clk 0:00:15]}  Bxg4 {[%clk 0:00:02]} 44. a5 {[%clk 0:00:16]}  f5 {[%clk 0:00:02]} 45. Nd7 {[%clk 0:00:13]}  Rd8 {[%clk 0:00:02]} 46. Ne5 {[%clk 0:00:13]}  Bxh5 {[%clk 0:00:02]} 47. b6 {[%clk 0:00:12]}  f4 {[%clk 0:00:03]} 48. b7 {[%clk 0:00:10]}  f3 {[%clk 0:00:00]} 49. Ra8 {[%clk 0:00:04]} 1-0


[Site "https://www.chess.com"]